Cogmind - Beta 12 --- EXPLORER MODE // 2023.12.02 @ 04:43:43 Player: daffie Result: Destroyed by G-47 Trooper with Particle Gun Performance ------------- Evolutions (3) 1500 Regions Visited (11) 2200 Robots Destroyed (186) 930 Value Destroyed (8128) 8128 Prototype IDs (27) 540 Alien Tech Used (0) 0 Bonus (2867) 2867 TOTAL SCORE: 16165 Bonus ------- High Alert Combat Kills 979 Follower Combat Kills 877 Entered Garrisons 200 Used RIF Installer 1000 Aligned with FarCom 300 Friendly Fire -489 Cogmind --------- Core Integrity 0/700 Matter 3/300 Energy 86/100 System Corruption 3% Temperature Cool (27) Movement Walking (120) Location -7/Storage Parts ------- > --- POWER (2) -------- (None) > --- PROPULSION (5) --- Improved Carbon-fiber Leg > --- UTILITY (5) ------ Improved Cooling System Advanced Targeting Computer Relay Coupler [Grunt] (14) > --- WEAPON (2) ------- Rocket Array Remote Datajack > --- INVENTORY (5) ---- Relay Coupler [Behemoth] (17) Skeleton Box Supersonic Drone Bay (1/1) Rocket Array Heavy Flail Peak State ------------ > --- POWER ------------ Light Antimatter Reactor Reinforced Antimatter Reactor > --- PROPULSION ------- Heavy Siege Treads Improved Carbon-fiber Leg Potential Leg Potential Leg > --- UTILITY ---------- Advanced Targeting Computer Improved Armor Integrity Analyzer Advanced Transmission Jammer Advanced Focal Shield Relay Coupler [NC] > --- WEAPON ----------- Railgun Hypervelocity Mass Driver > --- INVENTORY -------- Relay Coupler [Behemoth] Skeleton Box Supersonic Drone Bay Remote Datajack Heavy Flail [Rating: 93] Favorites ----------- Power Heavy Ion Engine Engine Heavy Ion Engine Power Core Light Nuclear Core Reactor Reinforced Antimatter Reactor Propulsion Potential Leg Treads Armored Treads Leg Potential Leg Wheel Armored Wheel Hover Unit Gravmag System Flight Unit VTOL Module Utility System Shield Device Structural Scanner Storage Medium Storage Unit Processor Advanced Terrain Scan Processor Hackware System Shield Protection Weapon Shielding Weapon Plasma Cannon Energy Gun EM Shotgun Energy Cannon Plasma Cannon Ballistic Gun Railgun Ballistic Cannon Mini Assault Cannon Launcher Rocket Array Special Weapon Remote Datajack Impact Weapon Heavy Flail Slashing Weapon Ripper Build | -11 -10 -10 -9 -9 -9 -8 -8 -7 -7 -7 -7 ------- Run | Jun Mat Min Mat Min Exi Min Mat Fac Gar Fac Sto Slots Evolved 7 | . 1 . 2 . . . 2 2 . . . Power 1 | . . . 1 . . . . . . . . Propulsion 3 | . 1 . . . . . 2 . . . . Utility 3 | . . . 1 . . . . 2 . . . Weapon . | . . . . . . . . . . . . Parts Attached 230 | 7 20 . 27 2 6 . 49 22 45 47 5 Power 29 | 1 1 . 8 . 1 . 8 1 7 2 . Engine 20 | 1 1 . 8 . 1 . 8 . 1 . . Core 3 | . . . . . . . . 1 1 1 . Reactor 6 | . . . . . . . . . 5 1 . Propulsion 85 | 2 12 . 6 1 2 . 15 10 14 23 . Treads 16 | . . . . . . . 11 2 1 2 . Leg 26 | 2 3 . . . 2 . 1 2 5 11 . Wheel 7 | . . . 6 1 . . . . . . . Hover 7 | . . . . . . . . . 4 3 . Flight 29 | . 9 . . . . . 3 6 4 7 . Utility 43 | 2 3 . 3 . 3 . 5 4 14 8 1 Device 30 | . 3 . 1 . 3 . 5 3 8 6 1 Storage 1 | 1 . . . . . . . . . . . Processor 3 | . . . . . . . . 1 2 . . Hackware 7 | . . . 2 . . . . . 3 2 . Protection 2 | 1 . . . . . . . . 1 . . Artifact . | . . . . . . . . . . . . Weapon 73 | 2 4 . 10 1 . . 21 7 10 14 4 Energy Gun 25 | 1 2 . 7 . . . 7 2 2 4 . Energy Cannon 15 | . 1 . 2 . . . 8 1 . 3 . Ballistic Gun 7 | 1 1 . 1 . . . 2 . 1 1 . Ballistic Cannon 12 | . . . . . . . 1 4 4 3 . Launcher 4 | . . . . . . . . . . 1 3 Special Weapon 4 | . . . . . . . . . 1 2 1 Impact Weapon 3 | . . . . . . . 1 . 2 . . Slashing Weapon 3 | . . . . 1 . . 2 . . . . Piercing Weapon . | . . . . . . . . . . . . Special Melee Weapon . | . . . . . . . . . . . . Unidentified Prototypes 24 | . 1 . 4 . 3 . 3 3 . 9 1 Parts Lost 25 | . . . 2 . . . 2 . 9 8 4 Power 6 | . . . . . . . 1 . 3 1 1 Propulsion 10 | . . . . . . . . . 4 3 3 Utility 6 | . . . . . . . 1 . 2 3 . Weapon 3 | . . . 2 . . . . . . 1 . Highest Loss Streak 4 | . . . 1 . . . 1 . 2 3 4 To Critical Strikes . | . . . . . . . . . . . . Average Slot Usage (%) 92 | . 98 100 93 98 99 100 97 99 80 86 61 Engine 11 | . 12 12 18 20 20 20 15 13 3 . . Reactor 2 | . . . . . . . . . 2 13 5 Treads 8 | . . . . . . . 22 20 1 7 10 Leg 11 | . 22 . . . 13 20 15 13 9 13 11 Wheel 5 | . . . 24 30 16 10 . . . . . Flight 3 | . 13 37 5 . . . . 1 7 2 . Device 14 | . 5 25 13 20 19 20 15 22 10 12 8 Processor 3 | . . . . . . . . 5 7 10 7 Hackware 10 | . . . 16 10 10 10 8 7 13 11 7 Energy Gun 4 | . 13 25 9 . . . 3 4 4 3 . Energy Cannon 4 | . 5 . 4 10 10 10 10 . . 1 . Ballistic Gun 1 | . 5 . 1 . . . . . 1 3 . Ballistic Cannon 2 | . . . . . . . . 8 4 4 . Slashing Weapon 1 | . . . . 8 10 10 1 . . . . Naked Turns . | . . . . . . . . . . . . Heaviest Build 65 | 20 21 14 26 26 27 27 31 30 58 65 40 Greatest Support 82 | 20 30 14 45 45 69 69 69 78 60 82 36 Greatest Overweight (x) 7 | 2 6 . 1 . . . 6 1 7 3 2 Average Overweight (x) . | . . . . . . . . . . . . Largest Inventory Capacity 10 | 10 10 5 5 5 5 5 5 5 5 5 5 Average Capacity 5 | 6 8 5 5 5 5 5 5 5 5 5 5 Most Carried 5 | 1 4 4 5 5 5 5 5 5 5 5 5 Average Carried 4 | . 1 3 4 4 4 5 4 4 4 5 4 Final Capacity 10 | 10 5 5 5 5 5 5 5 5 5 5 5 Final Carried 5 | . 2 4 4 4 5 5 5 5 5 5 5 Class Distribution -------------------- 87% | Hacker-Mutant 8% | Hacker-Sprinter 3% | Scavenger-Mutant Dominant Class ---------------- Hacker-Mutant | -10/Materials Hacker-Sprinter | -10/Mines Hacker-Mutant | -9/Materials Hacker-Mutant | -9/Mines Hacker-Mutant | -9/Exiles Hacker-Mutant | -8/Mines Hacker-Mutant | -8/Materials Hacker-Mutant | -7/Factory Hacker-Mutant | -7/Garrison Hacker-Mutant | -7/Factory Scavenger-Mutant | -7/Storage Resources | -11 -10 -10 -9 -9 -9 -8 -8 -7 -7 -7 -7 ----------- Run | Jun Mat Min Mat Min Exi Min Mat Fac Gar Fac Sto Matter Collected 4087 | 44 444 . 285 20 . 60 521 506 1235 972 . Remotely 117 | . 117 . . . . . . . . . . Salvage Created 7550 | . 251 . 1283 290 . . 2472 610 836 1808 . Parts 404 | . 21 . 84 13 . . 128 38 29 91 . Haulers Intercepted 15 | . 2 . 5 . . . 4 2 . 2 . Recyclers Shooed 3 | . . . 2 . . . 1 . . . . Parts Field Recycled . | . . . . . . . . . . . . Retrieved Matter . | . . . . . . . . . . . . Parts Self-Destructed . | . . . . . . . . . . . . Prevented . | . . . . . . . . . . . . Kills | -11 -10 -10 -9 -9 -9 -8 -8 -7 -7 -7 -7 ------- Run | Jun Mat Min Mat Min Exi Min Mat Fac Gar Fac Sto Combat Hostiles Destroyed 130 | . 6 . 18 2 . . 39 11 19 35 . Melee 4 | . . . . . . . 3 . 1 . . Guns 45 | . 5 . 11 . . . 13 . 2 14 . Cannons 60 | . . . 5 2 . . 19 11 13 10 . AOE 12 | . 1 . 2 . . . 1 . . 8 . Classes Destroyed 17 | . 3 . 6 . . . 3 2 . 3 . Worker 5 | . . . 1 2 . . . 1 . 1 . Builder 5 | . . . . . . . 3 1 . 1 . Tunneler 2 | . . . 1 . . . . . . 1 . Hauler 15 | . 2 . 5 . . . 4 2 . 2 . Recycler 8 | . . . 1 2 . . . 2 . 3 . Operator 8 | . . . 2 . . . 5 1 . . . Watcher 14 | . 2 . 4 . . . 4 1 . 3 . Swarmer 20 | . 6 . 6 . . . 3 1 4 . . Grunt 57 | . . . 2 2 . . 25 5 8 15 . Brawler 1 | . . . . . . . 1 . . . . Duelist 1 | . . . . . . . 1 . . . . Protector 2 | . . . . . . . . . . 2 . Sentry 27 | . . . 10 . . . 9 1 4 3 . Specialist 4 | . . . . . . . . . . 4 . Hunter 5 | . . . . . . . . 1 2 2 . Programmer 8 | . . . . . . . . 3 1 4 . Heavy 5 | . . . . . . . . . . 5 . Thug 1 | . . . . . . . . . 1 . . Best Kill Streak 11 | . 3 . 7 4 . . 11 4 3 9 . Combat Bots Only 5 | . 2 . 4 2 . . 5 4 3 5 . Max Kills in Single Turn 4 | . 1 . 1 1 . . 2 4 2 3 . Gunslinging 1 | . . . . . . . . . . 1 . Exploded 3 | . 1 . 1 . . . 1 . . 3 . Melee 1 | . . . . . . . 1 . 1 . . Uniques/NPCs Destroyed . | . . . . . . . . . . . . Combat | -11 -10 -10 -9 -9 -9 -8 -8 -7 -7 -7 -7 -------- Run | Jun Mat Min Mat Min Exi Min Mat Fac Gar Fac Sto Damage Taken 5807 | . 88 . 485 27 . . 1224 317 1070 2370 226 Core 1035 | . 19 . 103 9 . . 200 28 194 421 61 Absorbed by Shields 5 | . . . . . . . . . 5 . . Redirected to Shielding 5 | . 5 . . . . . . . . . . Regen/Repaired (Parts) 278 | . . . . . . . 278 . . . . Core Remaining (%) 81 | 100 . 92 . . . 72 63 . . . . Volleys Fired 504 | . 21 . 75 3 . . 157 42 111 93 2 Largest 2 | . 2 . 2 1 . . 2 2 2 2 1 Hottest 220 | . 100 . 125 75 . . 160 123 170 220 5 Shots Fired 786 | . 43 . 104 3 . . 263 84 133 154 2 Gun 338 | . 32 . 87 . . . 106 8 25 80 . Cannon 438 | . 11 . 17 3 . . 157 76 108 66 . Launcher 6 | . . . . . . . . . . 6 . Special 4 | . . . . . . . . . . 2 2 Kinetic 295 | . . . 5 . . . 19 71 109 91 . Thermal 348 | . 11 . 25 3 . . 217 13 24 55 . Explosive 6 | . . . . . . . . . . 6 . Electromagnetic 133 | . 32 . 74 . . . 27 . . . . Robot Hit Streak 35 | . 5 . 21 16 . . 35 20 13 29 17 Robot Miss Streak 3 | . 3 . 3 . . . 2 3 1 2 . Penetration Max 2 | . . . . . . . . . 1 2 . Secondary Targets 4 | . . . . . . . . . 1 3 . Max Gunslinging Chain 1 | . . . . . . . . . 1 1 . Shots Hit Robots 595 | . 30 . 86 8 . . 190 57 107 115 2 Core Hits 321 | . 11 . 50 7 . . 89 25 38 101 . Critical Kills 8 | . . . . . . . . . 2 6 . Critical Parts Destroyed 14 | . . . . . . . . . 3 11 . Critical Strikes 42 | . 2 . 1 . . . 3 5 13 18 . Burn 6 | . . . . . . . 2 1 3 . . Destroy 21 | . . . . . . . . . 4 17 . Blast 9 | . . . . . . . . 4 4 1 . Corrupt 3 | . 2 . 1 . . . . . . . . Smash 2 | . . . . . . . . . 2 . . Sever 1 | . . . . . . . 1 . . . . Melee Attacks 78 | . . . . 5 . . 9 . 64 . . Impact 64 | . . . . . . . . . 64 . . Slashing 14 | . . . . 5 . . 9 . . . . Piercing . | . . . . . . . . . . . . Sneak Attacks 9 | . . . . 3 . . 1 . 5 . . Combat Hostiles 1 | . . . . . . . . . 1 . . Follow-up Attacks . | . . . . . . . . . . . . Damage Inflicted 17335 | . 496 . 1757 376 . . 4748 1677 3289 4984 8 Guns 5516 | . 314 . 1234 . . . 1590 144 272 1962 . Cannons 7974 | . 70 . 325 75 . . 2699 1283 1724 1798 . Explosions 1838 | . 112 . 186 . . . 66 250 . 1224 . Melee 1948 | . . . . 301 . . 356 . 1291 . . Ramming 59 | . . . 12 . . . 37 . 2 . 8 Kinetic 5237 | . . . 59 . . . 211 1202 1724 2041 . Thermal 6809 | . 182 . 629 75 . . 3531 225 272 1895 . Explosive 1298 | . . . . . . . . 250 . 1048 . Electromagnetic 1984 | . 314 . 1057 . . . 613 . . . . Impact 1291 | . . . . . . . . . 1291 . . Slashing 657 | . . . . 301 . . 356 . . . . Piercing . | . . . . . . . . . . . . Highest Corruption 5 | . 5 5 . . . . . 1 1 3 3 Average Corruption 1 | . 5 5 . . . . . 1 1 1 3 Corruption Purged . | . . . . . . . . . . . . Corruption Blocked . | . . . . . . . . . . . . Effects 54 | . 8 6 . . . . . 1 16 22 1 Message Errors 21 | . 3 3 . . . . . . 7 7 1 Matter Fused 12 | . 2 1 . . . . . 1 1 7 . Heat Flow Errors 4 | . . 1 . . . . . . 2 1 . Energy Discharges 2 | . . . . . . . . . . 2 . Data Loss (minor) 7 | . 2 1 . . . . . . 3 1 . Data Loss (major) 2 | . . . . . . . . . 1 1 . Misfires 3 | . 1 . . . . . . . 1 1 . Alerts 1 | . . . . . . . . . 1 . . Weapon Failures 2 | . . . . . . . . . . 2 . Overload Shots 2 | . . . . . . . . . . 2 . Overflow Damage 774 | . . . 1 49 . . 177 113 335 99 . Projectiles 227 | . . . 1 . . . 67 40 32 87 . Explosions 123 | . . . . . . . 26 73 12 12 . Melee 424 | . . . . 49 . . 84 . 291 . . Knockbacks 44 | . . . . . . . . 17 15 12 . Impact 3 | . . . . . . . . . 3 . . Kinetic 38 | . . . . . . . . 17 10 11 . Secondary 3 | . . . . . . . . . 2 1 . Self-Inflicted Damage 183 | . . . 6 . . . 18 . 36 123 . Shots 8 | . . . . . . . 1 . 1 6 . Rammed 1 | . . . 1 . . . . . . . . Targets Rammed 8 | . . . 1 . . . 6 . . . 1 Kicked 7 | . . . . . . . 6 . . . 1 Crushed . | . . . . . . . . . . . . Highest Temperature 678 | . 234 200 360 102 . . 434 . 330 678 . Average Temperature 130 | . 85 109 86 62 . . 103 . 81 187 . Received Heat Transfer 2731 | . . . 216 24 . . 1053 144 451 618 225 Effects 50 | . . . 2 . . . 7 . 1 40 . Shutdowns 21 | . . . . . . . 3 . 1 17 . Energy Bleed 6 | . . . . . . . 1 . . 5 . Interference 6 | . . . 1 . . . . . . 5 . Matter Decay 1 | . . . . . . . . . . 1 . Short Circuit 3 | . . . . . . . . . . 3 . Damage (minor) 7 | . . . 1 . . . 1 . . 5 . Damage (major) 5 | . . . . . . . 2 . . 3 . Damage (core) 1 | . . . . . . . . . . 1 . Siege Activations . | . . . . . . . . . . . . Robots Corrupted 2 | . 1 . . . . . 1 . . . . Combat Hostiles 1 | . . . . . . . 1 . . . . Parts Fried 18 | . 2 . 7 . . . 5 . 4 . . Impact Corruptions 14 | . . . . . . . 2 . 12 . . Robots Melted 5 | . . . . . . . 1 . 1 3 . Combat Hostiles 5 | . . . . . . . 1 . 1 3 . Parts Melted 17 | . . . 1 . . . 9 . 3 4 . Heat Transferred 12076 | . 298 . 1040 111 . . 6777 444 1000 2406 . Parts Sabotaged . | . . . . . . . . . . . . Parts Stolen . | . . . . . . . . . . . . Parts Stripped . | . . . . . . . . . . . . Power Chain Reactions 8 | . 2 . 4 . . . 1 1 . . . Missiles Intercepted . | . . . . . . . . . . . . Alert | -11 -10 -10 -9 -9 -9 -8 -8 -7 -7 -7 -7 ------- Run | Jun Mat Min Mat Min Exi Min Mat Fac Gar Fac Sto Peak Influence 1722 | . 161 27 370 62 . . 421 501 1722 892 299 Initial 671 | . . 27 7 12 . . . 43 108 671 294 Average 356 | . 79 27 168 39 . . 125 107 1026 617 290 Maximum Alert Level 5 | . . . 1 . . . 2 2 5 3 1 Low Security (%) 53 | 100 100 100 46 100 . 100 79 82 12 . . Level 1 13 | . . . 53 . . . 16 6 3 1 100 Level 2 16 | . . . . . . . 3 11 15 81 . Level 3 6 | . . . . . . . . . 19 17 . Level 4 4 | . . . . . . . . . 25 . . Level 5 4 | . . . . . . . . . 24 . . High Security . | . . . . . . . . . . . . Max Security . | . . . . . . . . . . . . Squads Dispatched 39 | . 1 1 1 . . . 10 9 . 15 2 Investigation 9 | . 1 1 . . . . 2 3 . 1 1 Extermination 4 | . . . . . . . . 2 . 2 . Reinforcement 17 | . . . 1 . . . 6 2 . 7 1 Assault 1 | . . . . . . . 1 . . . . Garrison 8 | . . . . . . . 1 2 . 5 . Intercept . | . . . . . . . . . . . . Searches Triggered . | . . . . . . . . . . . . Construction Impeded . | . . . . . . . . . . . . Haulers Reinforced 1 | . . . . . . . . 1 . . . Active Scanning Responses . | . . . . . . . . . . . . Cargo Convoy Interrupts 1 | . . . . . . . . . . 1 . Stealth | -11 -10 -10 -9 -9 -9 -8 -8 -7 -7 -7 -7 --------- Run | Jun Mat Min Mat Min Exi Min Mat Fac Gar Fac Sto Distress Signals 6 | . . . 1 . . . 3 . . 1 1 Communications Jammed . | . . . . . . . . . . . . Distress Signals . | . . . . . . . . . . . . Times Spotted 209 | . 8 . 29 2 . . 59 17 38 48 8 Peak Tracking Total 9 | . 2 . 5 2 . . 6 4 7 7 9 Tactical Retreats 8 | . . . 1 . . . 3 1 2 1 . Traps | -11 -10 -10 -9 -9 -9 -8 -8 -7 -7 -7 -7 ------- Run | Jun Mat Min Mat Min Exi Min Mat Fac Gar Fac Sto Traps Triggered 13 | . 1 . . . . . 3 1 5 2 1 Indirectly . | . . . . . . . . . . . . Trap Hack Attempts . | . . . . . . . . . . . . Triggered . | . . . . . . . . . . . . Disarmed 1 | . . . 1 . . . . . . . . Reprogrammed . | . . . . . . . . . . . . Reused . | . . . . . . . . . . . . Traps Extracted . | . . . . . . . . . . . . Installed . | . . . . . . . . . . . . Triggered . | . . . . . . . . . . . . Machines | -11 -10 -10 -9 -9 -9 -8 -8 -7 -7 -7 -7 ---------- Run | Jun Mat Min Mat Min Exi Min Mat Fac Gar Fac Sto Machines Disabled 35 | . 2 . 2 . . . 4 5 11 11 . Max in Single Turn 4 | . 1 . 1 . . . 1 2 1 4 . Garrison Access 1 | . . . . . . . 1 . . . . Garrison Relay 8 | . . . . . . . . . 8 . . Phase Generator 1 | . . . . . . . . . 1 . . Machines Repaired . | . . . . . . . . . . . . Machines Sabotaged . | . . . . . . . . . . . . Overloaded Fab Kills . | . . . . . . . . . . . . Hacking | -11 -10 -10 -9 -9 -9 -8 -8 -7 -7 -7 -7 --------- Run | Jun Mat Min Mat Min Exi Min Mat Fac Gar Fac Sto Machines Accessed 32 | . 4 1 7 . . . 5 6 5 3 1 Terminals 20 | . 2 . 5 . . . 3 3 5 1 1 Fabricators 2 | . . . . . . . . 2 . . . Repair Stations 2 | . . . . . . . 2 . . . . Recycling Units 5 | . 2 . 2 . . . . . . 1 . Scanalyzers . | . . . . . . . . . . . . Garrison Access 2 | . . . . . . . . 1 . 1 . Total Hacks 97 | . 9 1 26 . . . 15 24 13 6 3 Successful 55 | . 6 1 22 . . . 7 10 4 4 1 Failed 42 | . 3 . 4 . . . 8 14 9 2 2 Catastrophic 5 | . . . . . . . 2 2 1 . . Database Lockouts . | . . . . . . . . . . . . Manual 39 | . 6 . 9 . 1 . 8 14 . 1 . Terminals 77 | . 6 . 22 . . . 11 19 13 3 3 Fabricators 4 | . . . . . . . . 4 . . . Repair Stations 4 | . . . . . . . 4 . . . . Recycling Units 8 | . 3 . 4 . . . . . . 1 . Scanalyzers . | . . . . . . . . . . . . Garrison Access 3 | . . . . . . . . 1 . 2 . Terminal Hacks 32 | . 2 1 15 . . . 4 4 4 1 1 Record 6 | . . . 6 . . . . . . . . Part Schematic 1 | . . . . . . . . 1 . . . Prototype ID Bank 1 | . . . . . . . . 1 . . . Open Door 2 | . . 1 . . . . . . . . 1 Level Access Points 2 | . . . 1 . . . 1 . . . . Branch Access Points 3 | . 1 . 1 . . . . . . 1 . Emergency Access Points 5 | . 1 . 2 . . . . 1 1 . . Locate Traps 1 | . . . 1 . . . . . . . . Disarm Traps 1 | . . . 1 . . . . . . . . Maintenance Status 1 | . . . 1 . . . . . . . . Patrol Status 1 | . . . . . . . . 1 . . . Recall Investigation 1 | . . . . . . . 1 . . . . Recall Reinforcements 1 | . . . . . . . 1 . . . . Zone Layout 3 | . . . 2 . . . 1 . . . . Garrison Registry 1 | . . . . . . . . . 1 . . Patrol Navigation 1 | . . . . . . . . . 1 . . Security Stations 1 | . . . . . . . . . 1 . . Fabricator Hacks . | . . . . . . . . . . . . Repair Station Hacks 3 | . . . . . . . 3 . . . . Scan Component 2 | . . . . . . . 2 . . . . Repair 1 | . . . . . . . 1 . . . . Recycling Unit Hacks 7 | . 2 . 4 . . . . . . 1 . Report Inventory 5 | . 1 . 3 . . . . . . 1 . Retrieve Components 2 | . 1 . 1 . . . . . . . . Scanalyzer . | . . . . . . . . . . . . Garrison Access Hacks 2 | . . . . . . . . 1 . 1 . Unlock Access 1 | . . . . . . . . 1 . . . Coupler Status 1 | . . . . . . . . . . 1 . Unauthorized Hacks 11 | . 2 . 3 . . . . 5 . 1 . Terminals 7 | . 1 . 3 . . . . 3 . . . Track 5 | . 1 . 2 . . . . 2 . . . Assimilate 1 | . . . 1 . . . . . . . . Operators 1 | . . . . . . . . 1 . . . Fabricators 2 | . . . . . . . . 2 . . . Overload 2 | . . . . . . . . 2 . . . Repair Stations . | . . . . . . . . . . . . Recycling Units 1 | . 1 . . . . . . . . . . Tunnel 1 | . 1 . . . . . . . . . . Scanalyzers . | . . . . . . . . . . . . Garrison Access 1 | . . . . . . . . . . 1 . Eject 1 | . . . . . . . . . . 1 . Data Cores Recovered 1 | . . . 1 . . . . . . . . Used . | . . . . . . . . . . . . Hacking Detections 19 | . 2 . 4 . . . 3 3 4 2 1 Full Trace Events 6 | . . . . . . . 2 1 2 . 1 Feedback Events . | . . . . . . . . . . . . Feedback Blocked . | . . . . . . . . . . . . Robot Schematics Acquired . | . . . . . . . . . . . . Robots Built . | . . . . . . . . . . . . Authchips . | . . . . . . . . . . . . Time . | . . . . . . . . . . . . Total Robot Build Rating . | . . . . . . . . . . . . Part Schematics Acquired 1 | . . . . . . . . 1 . . . Parts Built . | . . . . . . . . . . . . Authchips . | . . . . . . . . . . . . Time . | . . . . . . . . . . . . Total Part Build Rating . | . . . . . . . . . . . . Parts Repaired 1 | . . . . . . . 1 . . . . Time 38 | . . . . . . . 38 . . . . Parts Recycled . | . . . . . . . . . . . . Recycled Matter . | . . . . . . . . . . . . Retrieved Matter . | . . . . . . . . . . . . Retrieved Components 9 | . . . 9 . . . . . . . . Parts Scanalyzed . | . . . . . . . . . . . . Part Schematics Acquired . | . . . . . . . . . . . . Parts Damaged . | . . . . . . . . . . . . Bothacking | -11 -10 -10 -9 -9 -9 -8 -8 -7 -7 -7 -7 ------------ Run | Jun Mat Min Mat Min Exi Min Mat Fac Gar Fac Sto Used RIF Installer 2 | . . . . . . . . . 2 . . Watcher Feeds 1 | . . . . . . . . . 1 . . Robots Hacked 4 | . . . . . . . . . . 2 2 Non-combat . | . . . . . . . . . . . . Combat 4 | . . . . . . . . . . 2 2 Robot Hacks Applied 4 | . . . . . . . . . . 2 2 overwrite_iff 3 | . . . . . . . . . . 1 2 formatsys_high 1 | . . . . . . . . . . 1 . Relay Couplers Released 42 | . . . . . . . 4 . 34 4 . Ejected 4 | . . . . . . . . . . 4 . Machine Destruction 38 | . . . . . . . 4 . 34 . . Attached 5 | . . . . . . . . . 3 2 . Fabnet Peak Effective % . | . . . . . . . . . . . . Robots Rewired 3 | . . . . . . . . . 3 . . Allies Hacked . | . . . . . . . . . . . . Hacks Repelled 1 | . . . . . . . . . 1 . . Allies | -11 -10 -10 -9 -9 -9 -8 -8 -7 -7 -7 -7 -------- Run | Jun Mat Min Mat Min Exi Min Mat Fac Gar Fac Sto Total Allies 15 | . . 2 1 . . . . 3 5 2 2 Largest Group 4 | . . 2 2 . . . . 3 4 2 1 Highest-Rated Group 212 | . . 45 45 . . . . 93 212 64 16 Highest-Rated Ally 80 | . . 31 31 . . . . 31 80 32 16 Total Orders 11 | . . . . . . . 2 . 9 . . STAY 2 | . . . . . . . . . 2 . . ROAM 1 | . . . . . . . . . 1 . . GUARD 1 | . . . . . . . . . 1 . . AID 1 | . . . . . . . . . 1 . . EXPLORE 5 | . . . . . . . 2 . 3 . . RETURN 1 | . . . . . . . . . 1 . . Ally Attacks 121 | . . . 6 . . . . 12 95 3 5 Total Damage 2261 | . . . 106 . . . . 169 1759 214 13 Kills 28 | . . . 2 . . . . 3 21 2 . Allies Corrupted 2 | . . . . . . . . . 2 . . Allies Melted . | . . . . . . . . . . . . Intel | -11 -10 -10 -9 -9 -9 -8 -8 -7 -7 -7 -7 ------- Run | Jun Mat Min Mat Min Exi Min Mat Fac Gar Fac Sto Robot Analysis Total . | . . . . . . . . . . . . Derelict Logs Recovered . | . . . . . . . . . . . . Drone Launches 6 | . . . . . . . 2 . 4 . . Drone Recoveries 6 | . . . . . . . 2 . 4 . . Exploration | -11 -10 -10 -9 -9 -9 -8 -8 -7 -7 -7 -7 ------------- Run | Jun Mat Min Mat Min Exi Min Mat Fac Gar Fac Sto Turns Passed 11322 | 57 556 222 1462 644 366 417 2615 1211 2050 1586 136 Spaces Moved 8760 | 43 645 571 1432 662 392 449 1627 549 1511 807 72 Core 122 | 20 1 . . . . . . . 97 4 . Treads 294 | . . . . . . . 5 211 . 78 . Legs 4567 | 23 242 . . . 264 449 1620 318 885 694 72 Wheels 1881 | . . . 1091 662 128 . . . . . . Hover 299 | . . . . . . . . . 288 11 . Flight 1597 | . 402 571 341 . . . 2 20 241 20 . Fastest Speed 20 | 50 30 32 32 90 90 90 90 20 20 45 120 Average Speed 88 | 108 66 32 76 90 90 90 90 151 88 116 151 Slowest Speed 475 | 150 350 32 105 90 90 90 475 250 455 330 260 Overloaded Moves 329 | . . . . . . . . 20 247 62 . Propulsion Burnouts . | . . . . . . . . . . . . Robots Hopped 2 | . . . 2 . . . . . . . . Cave-ins Triggered . | . . . . . . . . . . . . Exploration Rate (%) 68 | 3 98 96 99 99 87 87 99 15 98 22 22 Regions Visited 11 Branch Regions 5 Pre-discovered Areas 1 | . 1 . . . . . . . . . . Known Exits Taken 10 | 1 1 1 1 1 1 1 1 1 . 1 . Unknown Exits Taken . | . . . . . . . . . . . . Scrap Searched 2 | . . 1 . 1 . . . . . . . Spaces Dug 45 | . . . 2 . . . 15 . 26 2 . Terrain Destroyed 254 | . 6 . 16 . . . 38 13 100 81 . Melee 26 | . . . . . . . . . 26 . . Projectile 50 | . . . 4 . . . 33 2 2 9 . AOE 178 | . 6 . 12 . . . 5 11 72 72 . Terrain Rammed 1 | . . . . . . . . . 1 . . Walls Destroyed . | . . . . . . . . . . . . Machines Disabled . | . . . . . . . . . . . . Actions | -11 -10 -10 -9 -9 -9 -8 -8 -7 -7 -7 -7 --------- Run | Jun Mat Min Mat Min Exi Min Mat Fac Gar Fac Sto Total 11334 | 50 731 610 1688 699 405 461 2486 844 1996 1267 97 Wait 1490 | . 24 34 140 26 1 13 599 212 143 284 14 Move 8746 | 42 644 570 1427 661 391 448 1626 549 1510 806 72 Hop 2 | . . . 2 . . . . . . . . Pick Up 26 | 1 5 4 3 1 2 . 5 1 4 . . Fast Attach 161 | 6 15 . 10 . 3 . 37 16 30 41 3 Attach 20 | 1 2 . 5 1 1 . 5 1 3 . 1 Detach 15 | . 2 . 2 . 1 . 3 2 4 . 1 Swap 49 | . 3 . 12 1 2 . 7 5 12 6 1 Drop 147 | . 15 2 11 1 4 . 32 16 27 37 2 Fire 504 | . 21 . 75 3 . . 157 42 111 93 2 Melee 78 | . . . . 5 . . 9 . 64 . . Ram 2 | . . . 1 . . . . . 1 . . Kick 7 | . . . . . . . 6 . . . 1 Crush . | . . . . . . . . . . . . Escape Stasis 69 | . . . . . . . . . 69 . . Rewire 18 | . . . . . . . . . 18 . . Trap . | . . . . . . . . . . . . Miscellaneous . | . . . . . . . . . . . . Route ------- -11/Junkyard -10/Materials (discovered 4 exits: *Mat x3 / *Min) -10/Mines (discovered 2 exits: *Mat x2) -9/Materials (discovered 4 exits: *Mat x3 / *Min) -9/Mines (discovered 3 exits: *Mat x2 / *Exi) -9/Exiles -8/Mines (discovered 2 exits: *Mat x2) -8/Materials (discovered 3 exits: *Fac x3) -7/Factory (discovered 3 exits: Fac / *Low / Gar) -7/Garrison (discovered 3 exits: *Fac x3) -7/Factory (discovered 5 exits: *Fac / *Sto x2 / Low x2) -7/Storage History --------- Turn | Location | Event 6 | -11/Junkyard | Identified exit to Materials 6 | -11/Junkyard | Discovered exit to Materials (range 15) 58 | -11/Junkyard | Entered Materials 58 | -10/Materials | Evolved 1 slot: Propulsion x1 145 | -10/Materials | Identified exit to Mines 298 | -10/Materials | Identified exit to Materials 298 | -10/Materials | Discovered exit to Materials (range 13) 316 | -10/Materials | Build established: Hacker-Mutant 432 | -10/Materials | Discovered exit to Materials (range 5) 589 | -10/Materials | Discovered exit to Materials (range 3) 614 | -10/Materials | Entered Mines 654 | -10/Mines | Met a Derelict shopkeep closing up shop 703 | -10/Mines | Build established: Hacker-Sprinter 731 | -10/Mines | Discovered exit to Materials (range 8) 745 | -10/Mines | Discovered exit to Materials (range 7) 836 | -10/Mines | Entered Materials 836 | -9/Materials | Accompanied by 2 allies 836 | -9/Materials | Evolved 2 slots: Power x1, Utility x1 841 | -9/Materials | Led the pair of lost Derelicts to an unsafe place 869 | -9/Materials | Identified exit to Mines 946 | -9/Materials | Identified exit to Materials 946 | -9/Materials | Discovered exit to Materials (range 7) 1412 | -9/Materials | Build established: Hacker-Mutant 2298 | -9/Materials | Entered Mines 2334 | -9/Mines | Discovered exit to Materials (range 5) 2356 | -9/Mines | Met a Derelict bent on vengeance 2361 | -9/Mines | A weapon hastily lodged in a ceiling crevice suddenly fell to the ground 2412 | -9/Mines | Deemed a non-threat by the Exiles lab entrance 2412 | -9/Mines | Identified exit to Exiles 2412 | -9/Mines | Discovered exit to Exiles (range 5) 2578 | -9/Mines | Discovered exit to Materials (range 8) 2942 | -9/Mines | Entered Exiles 2966 | -9/Exiles | Met 8R-AWN 2982 | -9/Exiles | Met EX-HEX 3010 | -9/Exiles | Met EX-BIN 3021 | -9/Exiles | Aligned with FarCom system 3022 | -9/Exiles | Given EX-Vault access code 3050 | -9/Exiles | Opened EX-Vault 3054 | -9/Exiles | Found Prototype Device 3055 | -9/Exiles | Identified Skeleton Box 3060 | -9/Exiles | Found Prototype Device 3060 | -9/Exiles | Identified Supersonic Drone Bay 3063 | -9/Exiles | Found Prototype Leg 3063 | -9/Exiles | Identified Potential Leg 3066 | -9/Exiles | Found Potential Leg 3091 | -9/Exiles | Warned to stay clear of 0b10 Research branches 3119 | -9/Exiles | Met EX-DEC 3179 | -9/Exiles | Visited The Gauntlet 3299 | -9/Exiles | Identified exit to Mines 3299 | -9/Exiles | Discovered exit to Mines (range 14) 3308 | -9/Exiles | Stole three prototypes: Potential Leg, Skeleton Box, Supersonic Drone Bay 3308 | -9/Exiles | Entered Mines 3676 | -8/Mines | Discovered exit to Materials (range 11) 3681 | -8/Mines | Discovered exit to Materials (range 14) 3725 | -8/Mines | Entered Materials 3725 | -8/Materials | Evolved 2 slots: Propulsion x2 4038 | -8/Materials | Identified exit to Factory 4038 | -8/Materials | Discovered exit to Factory (range 50) 4041 | -8/Materials | Discovered exit to Factory (range 91) 4564 | -8/Materials | Discovered exit to Factory (range 9) 4737 | -8/Materials | Garrison activated, responded to threat 5288 | -8/Materials | Repaired Arm. Treads 6340 | -8/Materials | Entered Factory 6340 | -7/Factory | Evolved 2 slots: Utility x2 6342 | -7/Factory | FarCom data flow suspended 6452 | -7/Factory | Identified exit to Lower Caves 6452 | -7/Factory | Discovered exit to Lower Caves (range 15) 7076 | -7/Factory | Identified exit to Factory 7076 | -7/Factory | Discovered exit to Factory (range 16) 7397 | -7/Factory | Garrison activated, responded to threat 7404 | -7/Factory | Allied Derelicts emerged from ambush trap array 7546 | -7/Factory | Identified exit to Garrison 7551 | -7/Factory | Entered Garrison 7551 | -7/Garrison | Accompanied by 3 allies 7620 | -7/Garrison | Triggered checkpoint 7649 | -7/Garrison | Installed Relay Interface Framework 7655 | -7/Garrison | Garrison Relay disabled 7768 | -7/Garrison | Triggered checkpoint 7768 | -7/Garrison | Identified exit to Factory 7768 | -7/Garrison | Discovered exit to Factory (range 38) 7772 | -7/Garrison | Discovered exit to Factory (range 61) 7780 | -7/Garrison | Discovered exit to Factory (range 70) 7802 | -7/Garrison | Triggered checkpoint 7828 | -7/Garrison | Build established: Hacker-Sprinter 7868 | -7/Garrison | Triggered checkpoint 8076 | -7/Garrison | Phase Generator disabled 8166 | -7/Garrison | Triggered checkpoint 8167 | -7/Garrison | Build established: Hacker-Mutant 8186 | -7/Garrison | Garrison Relay disabled 8296 | -7/Garrison | Triggered checkpoint 8397 | -7/Garrison | Discovered exit to Factory (range 47) 8397 | -7/Garrison | Discovered exit to Factory (range 19) 8397 | -7/Garrison | Discovered exit to Factory (range 52) 8455 | -7/Garrison | Expanded RIF knowledge: Watcher Feeds 8487 | -7/Garrison | Garrison Relay disabled 8500 | -7/Garrison | Learned Factory security intel 8529 | -7/Garrison | Found embedded Infiltrators 8829 | -7/Garrison | Garrison Relay disabled 8831 | -7/Garrison | Garrison Relay disabled 8832 | -7/Garrison | Garrison Relay disabled 8970 | -7/Garrison | Garrison Relay disabled 9018 | -7/Garrison | Garrison Relay disabled 9024 | -7/Garrison | Triggered checkpoint 9066 | -7/Garrison | Triggered checkpoint 9601 | -7/Garrison | Entered Factory 9721 | -7/Factory | Identified exit to Storage 10194 | -7/Factory | Cargo convoy interrupted 10542 | -7/Factory | Discovered exit to Factory (range 30) 10754 | -7/Factory | Core integrity fell below 50% 11062 | -7/Factory | Found Prototype Launcher 11062 | -7/Factory | Identified Rocket Array 11074 | -7/Factory | Garrison activated, responded to threat 11081 | -7/Factory | Core integrity fell below 20% 11100 | -7/Factory | Lost 3 parts (1p1u1w) 11187 | -7/Factory | Entered Storage 11197 | -7/Storage | Build established: Scavenger-Mutant 11233 | -7/Storage | Remotely autohacked Sealed Heavy Doors 11237 | -7/Storage | Found Rocket Array 11240 | -7/Storage | Found Rocket Array 11323 | -7/Storage | Destroyed by G-47 Trooper with Particle Gun Last Messages --------------- K-01 Serf collects debris. Rnf. Antimatter Reactor destroyed. W-25 Informer distress signal alerts nearby ally. Arm. Treads destroyed. K-01 Serf collects debris. Kicked W-25 Informer out of the way. Critical hit (Burn: +37). K-01 Serf collects debris. Jacked G-47 Trooper... >>overwrite_iff Rewriting IFF filter. K-01 Serf collects debris. Jacked G-47 Trooper... >>overwrite_iff Rewriting IFF filter. K-01 Serf collects debris. G-47 Trooper destroyed. ALERT: Hostiles spotted, dispatching reinforcements to Terminal S004. K-01 Serf collects debris. Critical hit (Burn: +37). Map ----- +----------------------------------------------------+ | | | ?????????????????????????????????????????????????? | | ?????????????????????????????????????????????????? | | ?????????????????????????????????????????????????? | | ?????????????????????????????????????????????????? | | ????????###?????#######??????????????????????????? | | ###????##T#####?# #??????????????????????????? | | # #????# ] ]#?# #??????????????????????????? | | #]##???# ]]]#?# #??????????????????????????? | | # T#???# #####?# #??????????????????????????? | | #+######+######## #??????????????????????????? | | ^ # #??????????????????????????? | | ^ / #####??????????????????????? | | # # +??? ??????????????????? | | ###########/###/# # #?"" ????????????????? | | ???????# # + #""" ?#??????????????? | | ???????# # # #""" #??????????????? | | ???????# # # + %#??????????????? | | ???????# ####### g # #??????????????? | | ???????# #???#"" #? #??????????????? | | ???????# #???#T #########??????????????? | | ???????# #???###gg #= #???????????????? | | ???????# #?????# # #???????????????? | | ???????# #?????# # #???????????????? | | ???????##########?????# + #???????????????? | | ??????????????????????# @# ! #???????????????? | | ??????????????????????# # #???????????????? | | ??????????????????????+ # *+% ?????????????? | | ??????????????????????# # =#! #??????????? | | ??????????????????????# # # #??????????? | | ??????????????????????# # #? ##??????????? | | ??????????????????????# # #?? #???????????? | | ??????????????????????# # #???#???????????? | | ??????????????????????##### ! #???????????????? | | ??????????????????????????########???????????????? | | ?????????????????????????????????????????????????? | | ?????????????????????????????????????????????????? | | ?????????????????????????????????????????????????? | | ?????????????????????????????????????????????????? | | ?????????????????????????????????????????????????? | | ?????????????????????????????????????????????????? | | ?????????????????????????????????????????????????? | | ?????????????????????????????????????????????????? | | ?????????????????????????????????????????????????? | | ?????????????????????????????????????????????????? | | ?????????????????????????????????????????????????? | | ?????????????????????????????????????????????????? | | ?????????????????????????????????????????????????? | | ?????????????????????????????????????????????????? | | ?????????????????????????????????????????????????? | +----------------------------------------------------+ Best States ------------- Heat Dissipation 75 Energy Generation 41 Energy Capacity 460 Matter Stores 300 Matter Capacity 300 Sight Range 16 Terrain Scan Range 16 Terrain Scan Density 210 ECM Strength 1 Jamming Range 16 Additional Mass Support 12 Armor Coverage 150 Resistance: KI 65 Resistance: TH 65 Resistance: EX 35 Resistance: EM 35 Resistance: I 35 Resistance: S 35 Resistance: P 35 Weapon Shielding 33 Weapon Cycling 15 Phase Shifting 15 Evasion (%) 72 Targeting Accuracy 8 Armor Integrity Analysis 40 Recoil Reduction 5 Offensive Hacking 30 Defensive Hacking 10 Relay Coupler Types 2 Relay Coupler Value 77 Item Schematics ----------------- Adv. Sensor Array | -7/Factory | Hacked Robot Schematics ------------------ None Fabricated ------------ Nothing Alien Tech Used ----------------- None Achievements -------------- None Challenges ------------ None Game ------ Seed TeslaArmoredLance Manual? 0 Play Time 04:04:07 Cumulative 1688.0 hours Start 2023.12.01 @ 04:51:27 End 2023.12.02 @ 04:43:43 Sessions 2 Manual Loads 0 Difficulty Explorer Special Mode None Game No. 68 Rogue 0 Adventurer 0 Explorer 68 Win Type - Total 3 Types 1/0/0/2/0/0/0/0/0 Lore% 51 Gallery% 83 Achievement% 100 Wizard Run 0 Options --------- ASCII 0 Keyboard 0 Movement Mouse Keybinds 0 Fullscreen 0 Font 32/Smallcaps Map View 76x50 Tactical HUD 0 Map Filters NONE Filters NONE Steam 1 RUN: 6be3adcc-c026-4786-a1d2-35cad8836890